bitfinex/quotes_BTCUSD_20220307
["timestamp","ask_amount","ask_price","bid_price","bid_amount"]
[1646687196016,2.82261269,37566.0,37558.0,0.00017286]
[1646687196017,0.83291795,37564.0,37558.0,0.00017286]
[1646687196217,0.83291795,37564.0,37558.0,2.86e-06]
[1646687196218,0.9674,37559.0,37558.0,2.86e-06]
[1646687196416,0.9674,37559.0,37556.0,0.001]
[1646687196417,0.01555455,37558.0,37556.0,0.001]
[1646687196617,0.2033,37557.0,37556.0,0.001]
[1646687196820,0.38179461,37557.0,37556.0,0.001]
[1646687197115,0.48179461,37557.0,37551.0,0.011]
[1646687197315,0.15379692,37556.0,37551.0,0.011]
[1646687197519,0.0999,37553.0,37551.0,0.011]
[1646687197718,0.3532,37553.0,37551.0,0.011]
[1646687197916,1.8217194,37552.0,37551.0,0.011]
[1646687198117,1.9750194,37552.0,37551.0,0.011]
[1646687198415,2.2719194,37552.0,37551.0,0.011]
[1646687198820,2.1719194,37552.0,37551.0,0.011]
[1646687199017,2.1749194,37552.0,37551.0,0.011]
[1646687199218,2.2748194,37552.0,37551.0,0.011]
[1646687199856,2.3748194,37552.0,37551.0,0.011]
[1646687200361,2.2719194,37552.0,37551.0,0.011]
[1646687200760,1.6,37550.0,37544.0,0.00216007]
[1646687200963,1.6,37547.0,37539.0,0.002]
[1646687201263,1.55214413,37546.0,37539.0,0.002]
[1646687201460,0.1,37541.0,37539.0,0.002]
[1646687201666,0.63206282,37540.0,37539.0,0.002]
[1646687201858,0.43206282,37540.0,37539.0,0.002]
[1646687202058,0.62896282,37540.0,37539.0,0.002]
[1646687202560,1.6,37539.0,37537.0,0.003]
[1646687202763,1.6,37537.0,37533.0,0.003]
[1646687202959,0.3533,37536.0,37533.0,0.003]
[1646687203218,0.0533,37536.0,37533.0,0.003]
[1646687204821,0.119956,37536.0,37533.0,0.003]
[1646687205621,0.0533,37536.0,37533.0,0.003]
[1646687206021,0.1,37534.0,37533.0,0.003]
[1646687206220,0.1533,37534.0,37533.0,0.003]
[1646687207062,0.1593,37534.0,37533.0,0.003]
[1646687207263,0.60312503,37534.0,37533.0,0.003]
[1646687207465,0.90312503,37534.0,37533.0,0.003]
[1646687207662,0.3562,37534.0,37533.0,0.003]
[1646687208264,0.3502,37534.0,37533.0,0.003]
[1646687209064,0.2502,37534.0,37533.0,0.003]
[1646687209266,0.32004502,37534.0,37533.0,0.003]
[1646687209464,0.42004502,37534.0,37533.0,0.003]
[1646687209666,0.22004502,37534.0,37533.0,0.003]
[1646687209866,0.0283,37534.0,37533.0,0.003]
[1646687212511,0.2,37539.0,37533.0,0.80241357]
[1646687212710,0.12024441,37538.0,37533.0,0.80241357]
[1646687212909,0.0533,37538.0,37533.0,0.80241357]
[1646687213112,0.0533,37538.0,37533.0,1.11546394]
[1646687213509,0.0533,37538.0,37533.0,1.27865504]
[1646687214109,0.0533,37538.0,37533.0,1.28041252]
[1646687214310,0.0533,37538.0,37533.0,1.33041252]
[1646687214952,0.0593,37538.0,37533.0,1.33041252]
[1646687215157,0.006,37538.0,37534.0,0.3]
[1646687215358,0.006,37538.0,37535.0,0.133256]
[1646687215553,0.006,37538.0,37536.0,0.3]
[1646687215758,0.006,37538.0,37536.0,0.4]
[1646687216053,0.006,37538.0,37537.0,0.3]
[1646687216278,0.1,37546.0,37537.0,0.35]
[1646687216455,0.1,37546.0,37540.0,0.41784803]
[1646687216654,0.1,37546.0,37540.0,0.46784803]
[1646687217054,0.2,37546.0,37540.0,0.23034547]
[1646687217255,0.2,37546.0,37540.0,0.28034547]
[1646687218807,0.1,37546.0,37540.0,0.28034547]
[1646687219007,0.104,37546.0,37541.0,0.3]
[1646687219410,0.104,37546.0,37541.0,0.433244]
[1646687219605,0.004,37546.0,37541.0,0.433244]
[1646687219809,0.004,37546.0,37542.0,0.18659092]
[1646687220007,0.004,37546.0,37543.0,0.31331]
[1646687220206,0.21951727,37558.0,37543.0,0.41331]
[1646687220408,0.21951727,37558.0,37548.0,0.22094786]
[1646687220612,0.21951727,37558.0,37549.0,0.36661]
[1646687220812,0.1,37560.0,37551.0,0.20596091]
[1646687221011,0.004,37558.0,37552.0,0.3]
[1646687221207,0.004,37558.0,37552.0,0.34]
[1646687221408,0.004,37558.0,37552.0,0.05]
[1646687221612,0.004,37558.0,37552.0,0.35]
[1646687221809,0.004,37558.0,37555.0,0.24199128]
[1646687222058,0.004,37558.0,37555.0,0.29199128]
[1646687222253,0.1798682,37562.0,37555.0,0.34199128]
[1646687222456,0.0798682,37562.0,37555.0,0.34199128]
[1646687222652,2.35410402,37566.0,37555.0,0.34199128]
[1646687222854,2.35410402,37566.0,37556.0,0.21439111]
[1646687223054,0.005,37562.0,37556.0,0.21439111]
[1646687223254,0.005,37562.0,37556.0,0.26439111]
[1646687223457,0.22816222,37562.0,37556.0,0.26439111]
[1646687224354,0.22316222,37562.0,37556.0,0.26439111]
[1646687224956,0.22316222,37562.0,37555.0,0.1]
[1646687225159,0.22316222,37562.0,37551.0,0.308]
[1646687225160,0.3,37561.0,37551.0,0.31]
[1646687225359,0.5,37561.0,37551.0,0.31]
[1646687225560,0.1,37557.0,37551.0,0.31]
[1646687225810,0.06124336,37555.0,37551.0,0.002]
[1646687226008,0.4,37554.0,37551.0,0.002]
[1646687226205,0.1,37554.0,37549.0,0.00015845]
[1646687226409,0.1,37553.0,37544.0,0.29569285]
[1646687226607,0.25431243,37549.0,37544.0,0.29569285]
[1646687226807,0.25431243,37549.0,37545.0,0.00015846]
[1646687227207,0.066633,37551.0,37545.0,0.00015846]
[1646687227607,0.066633,37551.0,37544.0,0.48102549]
[1646687228209,0.1,37553.0,37544.0,0.48102549]
[1646687228412,0.1,37553.0,37544.0,0.53102549]
[1646687228612,0.1,37553.0,37544.0,0.58102549]
[1646687230055,0.1,37553.0,37550.0,0.23559818]
[1646687230855,0.16663,37553.0,37544.0,0.28533264]
[1646687231258,0.1,37550.0,37544.0,0.05]
[1646687231455,0.1,37550.0,37543.0,0.05]
[1646687231655,0.1,37550.0,37543.0,0.1]
[1646687231856,2.66300712,37546.0,37544.0,0.24163111]
[1646687232054,0.1,37550.0,37544.0,0.24163111]
[1646687232055,0.1,37550.0,37544.0,0.29163111]
[1646687232254,0.1,37553.0,37544.0,0.34163111]
[1646687232255,0.2,37553.0,37544.0,0.34163111]
[1646687232454,0.1,37553.0,37544.0,0.34163111]
[1646687233056,0.104,37553.0,37546.0,0.0024911]
[1646687233326,0.104,37553.0,37551.0,0.32795157]
[1646687234329,0.23184776,37555.0,37551.0,0.32795157]
[1646687234330,0.33184776,37555.0,37551.0,0.32795157]
[1646687234524,0.33184776,37555.0,37551.0,0.42795157]
[1646687234525,0.1,37555.0,37551.0,0.42795157]
[1646687234727,100.07987299,37560.0,37552.0,0.407531]
[1646687234926,100.07987299,37560.0,37551.0,0.42795157]
[1646687235125,100.07987299,37560.0,37557.0,0.28865688]
[1646687235326,100.07987299,37560.0,37557.0,0.47184846]
[1646687235327,100.14060796,37560.0,37557.0,0.47184846]
[1646687235529,0.24356848,37559.0,37558.0,0.05]
[1646687236725,0.24356848,37559.0,37557.0,0.38865688]
[1646687237156,0.24856848,37559.0,37557.0,0.06316142]
[1646687237357,0.24856848,37559.0,37554.0,0.31320038]
[1646687237657,0.10408786,37558.0,37552.0,0.54877087]
[1646687237857,0.10408786,37558.0,37551.0,0.3208128]
[1646687238057,1.6,37557.0,37549.0,0.13337245]
[1646687238258,1.6,37557.0,37549.0,0.407531]
[1646687238259,1.6,37556.0,37549.0,0.407531]
[1646687238459,1.6,37556.0,37548.0,0.52247369]
[1646687238659,0.10408786,37558.0,37549.0,0.407531]
[1646687238859,0.27968398,37559.0,37549.0,0.066616]
[1646687239163,0.002,37556.0,37551.0,0.33485295]
[1646687239358,0.002,37556.0,37551.0,0.38485295]
[1646687239557,0.002,37556.0,37551.0,0.43485295]
[1646687239758,0.002,37556.0,37552.0,0.19409427]
[1646687240359,0.03966235,37559.0,37552.0,0.26069987]
[1646687240558,0.03966235,37559.0,37557.0,0.26801529]
[1646687240808,0.03966235,37559.0,37557.0,0.36801529]
[1646687241008,0.04366235,37559.0,37557.0,0.36801529]
[1646687241808,0.004,37559.0,37552.0,0.19409427]
[1646687242004,0.004,37559.0,37552.0,0.05]
[1646687242203,0.004,37559.0,37551.0,0.35]
[1646687242407,0.07987299,37560.0,37551.0,0.35]
[1646687242608,0.07987299,37560.0,37553.0,0.066607]
[1646687242806,0.07987299,37560.0,37558.0,0.32404292]
[1646687243207,0.07987299,37560.0,37558.0,0.37404292]
[1646687247161,0.08387299,37560.0,37558.0,0.37404292]
[1646687247963,0.08387299,37560.0,37558.0,0.32404292]
[1646687248226,0.07987299,37560.0,37558.0,0.32404292]
[1646687248423,0.07987299,37560.0,37554.0,0.3]
[1646687248624,0.07987299,37560.0,37554.0,0.05]
[1646687249024,0.07987299,37560.0,37552.0,0.35]
[1646687249225,0.07987299,37560.0,37551.0,0.133205]
[1646687249628,0.07987299,37560.0,37552.0,0.3]
[1646687250024,0.07987299,37560.0,37553.0,0.133211]
[1646687250424,0.07987299,37560.0,37553.0,0.24981499]
[1646687250626,0.07987299,37560.0,37553.0,0.1]
[1646687251026,0.07987299,37560.0,37556.0,0.27316185]
[1646687252060,0.07987299,37560.0,37556.0,0.32316185]
[1646687253060,0.08487299,37560.0,37556.0,0.32316185]
[1646687253260,0.08487299,37560.0,37556.0,0.37316185]
[1646687253660,0.08487299,37560.0,37559.0,0.20410512]
[1646687254263,0.2149,37567.0,37560.0,1.15]
[1646687254467,0.0001045,37568.0,37561.0,0.3]
[1646687254666,0.0001045,37568.0,37565.0,0.24443938]
[1646687254867,0.0001045,37568.0,37566.0,0.19352517]
[1646687255063,0.0001045,37568.0,37566.0,0.61010117]
[1646687255262,0.0001045,37568.0,37567.0,0.25519022]
[1646687255465,0.37911135,37576.0,37568.0,0.066572]
[1646687255709,0.37911135,37575.0,37569.0,0.35]
[1646687255910,0.37911135,37576.0,37573.0,0.2336819]
[1646687256109,0.37911135,37576.0,37574.0,0.06657]
[1646687256311,0.37911135,37576.0,37575.0,0.16077286]
[1646687256510,0.12870245,37580.0,37574.0,0.11657]
[1646687256511,0.37911135,37577.0,37574.0,0.11657]
[1646687256713,0.37911135,37579.0,37574.0,0.11657]
[1646687256914,9.524e-05,37577.0,37574.0,0.11657]
[1646687257212,9.524e-05,37577.0,37573.0,0.60014581]
[1646687257213,0.00609524,37577.0,37573.0,0.60014581]
[1646687257413,0.00609524,37577.0,37573.0,0.31031372]
[1646687257610,0.00609524,37577.0,37573.0,0.47909379]
[1646687257810,0.006,37577.0,37573.0,0.47909379]
[1646687258009,0.00612235,37577.0,37573.0,0.47909379]
[1646687258415,0.00012235,37577.0,37575.0,0.407531]
[1646687258619,0.00012235,37577.0,37576.0,0.3]
[1646687258822,0.00012235,37577.0,37576.0,0.4]
[1646687259114,0.08781443,37580.0,37576.0,0.4]
[1646687259313,0.00012235,37578.0,37577.0,0.06655735]
[1646687259580,0.00012235,37578.0,37577.0,0.39381614]
[1646687259785,0.00012235,37578.0,37577.0,0.44381614]
[1646687260180,0.08781443,37580.0,37577.0,0.1]
[1646687260381,0.00012235,37579.0,37577.0,0.1]
[1646687260579,0.00012235,37579.0,37567.0,0.3]
[1646687260779,0.00012235,37579.0,37567.0,0.5]
[1646687260980,0.0999,37573.0,37567.0,0.5]
[1646687261182,0.0999,37573.0,37568.0,0.2513474]
[1646687261581,0.00012235,37572.0,37568.0,0.2513474]
[1646687261782,0.00012235,37572.0,37567.0,0.1]
[1646687262181,0.00012235,37572.0,37567.0,0.05]
[1646687262585,0.0999,37573.0,37566.0,0.05]
[1646687262780,0.0999,37573.0,37566.0,0.2041505]
[1646687262781,0.025154,37568.0,37566.0,0.2041505]
[1646687262981,0.025154,37568.0,37567.0,0.407531]
[1646687263214,0.025154,37568.0,37565.0,0.05342]
[1646687263816,0.0999,37566.0,37565.0,0.05342]
[1646687264214,0.1999,37566.0,37565.0,0.05342]
[1646687264614,1.07450122,37566.0,37565.0,0.05342]
[1646687264816,1.22780122,37566.0,37565.0,0.05342]
[1646687265317,1.19456588,37566.0,37565.0,0.05342]
[1646687265518,1.41899722,37566.0,37565.0,0.04296518]
[1646687265720,1.79810857,37566.0,37565.0,0.04296518]
[1646687266215,1.79810857,37566.0,37554.0,0.05]
[1646687266415,0.31142739,37560.0,37551.0,0.3044]
[1646687266615,0.36472739,37560.0,37550.0,0.22139789]
[1646687266816,0.0533,37560.0,37550.0,0.22139789]
[1646687267059,0.05259081,37560.0,37551.0,0.06661]
[1646687267260,0.05459081,37560.0,37558.0,0.26303739]
[1646687268460,0.05259081,37560.0,37558.0,0.26303739]
[1646687269062,0.05559081,37560.0,37558.0,0.26303739]
[1646687269464,0.05559081,37560.0,37558.0,0.32963439]
[1646687269666,0.003,37560.0,37558.0,0.37963439]
[1646687270067,0.003,37560.0,37559.0,0.3]
[1646687270471,0.1,37567.0,37559.0,0.3]
[1646687270721,0.1,37567.0,37565.0,0.25076189]
[1646687270925,0.025154,37568.0,37565.0,0.30076189]
[1646687271127,0.025154,37568.0,37566.0,0.32143944]
[1646687271324,0.02527524,37568.0,37566.0,0.32143944]
[1646687271722,0.02527524,37568.0,37566.0,0.38802344]
[1646687272221,0.025154,37568.0,37566.0,0.38802344]
[1646687272624,0.025154,37568.0,37566.0,0.45460146]
[1646687272826,0.025154,37568.0,37566.0,0.50460146]
[1646687273424,0.025154,37568.0,37566.0,0.80460146]
[1646687273626,0.025154,37568.0,37567.0,0.707531]
[1646687273825,0.025154,37568.0,37567.0,0.757531]
[1646687274025,0.0001226,37569.0,37568.0,1.55138409]
[1646687274225,0.0001226,37569.0,37568.0,2.00891509]
[1646687274476,0.0001226,37569.0,37568.0,1.60138409]
[1646687274672,0.32500718,37577.0,37570.0,0.13313]
[1646687274873,0.32500718,37577.0,37575.0,0.20907428]
[1646687275073,0.32500718,37577.0,37574.0,0.24605597]
[1646687275272,0.32500718,37577.0,37574.0,0.34605597]
[1646687276074,0.32500718,37577.0,37574.0,0.62648765]
[1646687276075,0.0001226,37577.0,37574.0,0.62648765]
[1646687276277,0.32512978,37577.0,37574.0,0.62648765]
[1646687276675,0.0001226,37577.0,37574.0,0.62648765]
[1646687277075,0.32500718,37578.0,37574.0,0.62648765]
[1646687277277,0.0001226,37577.0,37574.0,0.62648765]
[1646687278311,0.08781443,37580.0,37574.0,0.62648765]
[1646687278509,0.0001226,37577.0,37574.0,0.62648765]
[1646687278708,0.0001226,37577.0,37575.0,0.05]
[1646687278911,0.0001226,37577.0,37568.0,0.01329]
[1646687278912,2.59746595,37577.0,37568.0,0.01329]
[1646687279113,0.24714494,37574.0,37567.0,0.32939546]
[1646687279313,0.24714494,37574.0,37567.0,0.06857346]
[1646687279710,0.24726754,37574.0,37570.0,0.24215543]
[1646687280111,0.0001226,37574.0,37570.0,0.29215543]
[1646687280311,0.0001226,37574.0,37570.0,0.34215543]
[1646687280711,0.06903742,37577.0,37570.0,0.40873043]
[1646687280913,0.06903742,37577.0,37570.0,0.34215543]
[1646687281110,0.00012183,37574.0,37570.0,0.34215543]
[1646687281511,0.00012183,37574.0,37570.0,0.05]
[1646687281711,0.27979304,37573.0,37571.0,0.05]
[1646687281966,0.27979304,37573.0,37568.0,0.05]
[1646687282666,0.27979304,37573.0,37570.0,0.00100148]
[1646687283065,0.27979304,37573.0,37571.0,0.26397189]
[1646687283267,0.00012183,37572.0,37571.0,0.26397189]
[1646687284369,0.0533,37574.0,37571.0,0.26397189]
[1646687284566,0.0001226,37573.0,37571.0,0.26397189]
[1646687285367,0.0001226,37573.0,37571.0,0.33053989]
[1646687285566,0.53241135,37577.0,37571.0,0.33053989]
[1646687285811,0.0001226,37574.0,37571.0,0.33053989]
[1646687286615,0.1533,37577.0,37571.0,0.33053989]
[1646687286815,0.1533,37577.0,37571.0,0.38053989]
[1646687287016,0.0001226,37574.0,37571.0,0.38053989]
[1646687287815,0.1533,37577.0,37571.0,0.38252642]
[1646687288015,0.0001226,37574.0,37571.0,0.38252642]
[1646687288215,0.0001226,37574.0,37571.0,0.33252642]
[1646687288620,0.0001226,37574.0,37571.0,0.00198653]
[1646687288818,0.0001226,37574.0,37571.0,0.05198653]
[1646687289118,0.37911135,37576.0,37571.0,0.00198653]
[1646687289319,0.0001226,37574.0,37571.0,0.00198653]
[1646687290364,1.1,37574.0,37564.0,0.06657862]
[1646687290562,1.1001226,37574.0,37566.0,0.25021207]
[1646687290763,1.1001226,37574.0,37566.0,0.30021207]
[1646687291165,1.1041226,37574.0,37566.0,0.30021207]
[1646687291561,1.1041226,37574.0,37569.0,0.29776679]
[1646687291562,1.104,37574.0,37569.0,0.29776679]
[1646687291764,0.0001226,37572.0,37569.0,0.39776679]
[1646687292663,0.46693565,37576.0,37569.0,0.39776679]
[1646687292863,0.0001226,37572.0,37569.0,0.39776679]
[1646687293310,0.0061226,37572.0,37569.0,0.39776679]
[1646687293511,0.0061226,37572.0,37570.0,0.27071297]
[1646687293715,0.0061226,37572.0,37569.0,0.39776679]
[1646687293912,0.006,37572.0,37569.0,0.39776679]
[1646687294112,0.0061226,37572.0,37569.0,0.39776679]
[1646687294413,0.0001226,37572.0,37569.0,0.39776679]
[1646687295114,0.005,37572.0,37569.0,0.39776679]
[1646687295315,0.0051226,37572.0,37569.0,0.39776679]
[1646687296319,0.005,37572.0,37569.0,0.39776679]
[1646687296515,0.46693565,37576.0,37569.0,0.39776679]
[1646687296716,0.0001226,37572.0,37569.0,0.39776679]
[1646687297566,0.0938243,37576.0,37569.0,0.39776679]
[1646687297766,0.0001226,37572.0,37570.0,0.24677149]
[1646687297966,0.0001226,37572.0,37569.0,0.39776679]
[1646687298766,0.0878243,37576.0,37569.0,0.69776679]
[1646687298968,0.0878243,37576.0,37573.0,0.39268204]
[1646687299169,0.0878243,37576.0,37573.0,0.44268204]
[1646687299371,2.43e-05,37576.0,37574.0,0.734301]
[1646687299568,0.37883565,37582.0,37575.0,0.3]
[1646687299768,0.37883565,37582.0,37580.0,0.31723875]
[1646687299966,0.02708812,37585.0,37580.0,0.36723875]
[1646687300169,0.02708812,37585.0,37580.0,0.66228716]
[1646687300365,0.02708812,37585.0,37580.0,0.82184643]
[1646687301217,0.03308812,37585.0,37580.0,0.82184643]
[1646687301520,0.0001226,37584.0,37580.0,0.82184643]
[1646687301916,0.0001226,37584.0,37580.0,0.57679802]
[1646687302320,0.006,37585.0,37581.0,0.707531]
[1646687302519,0.0001226,37584.0,37581.0,0.3]
[1646687303319,0.0001226,37584.0,37581.0,0.34014956]
[1646687303519,0.01,37589.0,37581.0,0.34014956]
[1646687303719,0.30083885,37588.0,37581.0,0.27360256]
[1646687303919,0.0001226,37584.0,37581.0,0.27360256]
[1646687304123,0.0001226,37584.0,37580.0,0.1]
[1646687304320,0.0001226,37584.0,37580.0,0.116555]
[1646687304767,0.01,37589.0,37581.0,0.35]
[1646687304962,0.0001226,37584.0,37582.0,0.1829011]
[1646687305361,0.0001226,37584.0,37582.0,0.2829011]
[1646687305761,0.0001226,37584.0,37583.0,0.3]
[1646687305959,0.0001226,37584.0,37582.0,0.61278466]
[1646687305960,0.01,37589.0,37582.0,0.61278466]
[1646687306161,0.01,37589.0,37585.0,0.21803093]
[1646687306363,0.01,37589.0,37585.0,0.31803093]
[1646687307163,0.01,37589.0,37585.0,0.05]
[1646687307360,0.01012259,37589.0,37586.0,0.05]
[1646687307961,0.01012259,37589.0,37583.0,0.05]
[1646687308222,0.01012259,37589.0,37582.0,0.42988356]
[1646687308223,0.01,37589.0,37582.0,0.42988356]
[1646687308423,0.01,37589.0,37582.0,0.86296656]
[1646687308622,0.01012259,37589.0,37582.0,0.86296656]
[1646687309225,0.01012259,37589.0,37585.0,0.05]
[1646687309429,0.01,37589.0,37585.0,0.05]
[1646687309824,0.00012259,37587.0,37585.0,0.05]
[1646687310225,0.00012259,37587.0,37584.0,0.05]
[1646687310627,0.00012259,37587.0,37583.0,0.2673481]
[1646687310628,0.01,37589.0,37583.0,0.05]
[1646687310825,0.01,37589.0,37582.0,0.42988356]
[1646687311027,0.00012259,37587.0,37582.0,0.42988356]
[1646687311827,0.014,37589.0,37582.0,0.42988356]
[1646687312266,0.00012259,37586.0,37582.0,0.42988356]
[1646687312966,0.00012259,37586.0,37583.0,0.066548]
[1646687313165,0.01,37589.0,37583.0,0.066548]
[1646687313369,0.00012183,37586.0,37583.0,0.066548]
[1646687314369,0.3889701,37589.0,37583.0,0.066548]
[1646687314572,0.00012183,37586.0,37583.0,0.066548]
[1646687315713,0.00012183,37586.0,37582.0,0.42988356]
[1646687316314,2.25683493,37585.0,37582.0,0.42988356]
[1646687316911,2.25695753,37585.0,37582.0,0.42988356]
[1646687317515,0.0001226,37585.0,37582.0,0.42988356]
[1646687317914,0.3889701,37589.0,37582.0,0.42988356]
[1646687318116,0.01,37589.0,37582.0,0.42988356]
[1646687318420,0.0001226,37585.0,37583.0,0.63620448]
[1646687318616,0.0001226,37585.0,37583.0,0.47407612]
[1646687318815,0.0001226,37585.0,37583.0,0.06654512]
[1646687319218,0.01,37589.0,37583.0,0.06654512]
[1646687319474,0.0001226,37586.0,37582.0,0.42988356]
[1646687319668,0.0001226,37586.0,37582.0,0.05]
[1646687319864,0.0001226,37586.0,37583.0,0.05]
[1646687320063,0.0001226,37586.0,37576.0,0.1]
[1646687320264,2.37390237,37588.0,37577.0,0.407531]
[1646687320665,0.00012259,37586.0,37581.0,0.25418226]
[1646687320863,0.00012259,37586.0,37582.0,0.407531]
[1646687321064,0.00012259,37586.0,37582.0,0.457531]
[1646687321265,0.00012259,37586.0,37583.0,0.407531]
[1646687321463,0.01,37589.0,37583.0,0.457531]
[1646687321663,0.01,37589.0,37582.0,0.066549]
[1646687321864,0.0001226,37586.0,37582.0,0.066549]
[1646687322064,0.01,37589.0,37582.0,0.516549]
[1646687322065,0.0001226,37589.0,37582.0,0.516549]
[1646687322267,0.0001226,37589.0,37582.0,0.116549]
[1646687322666,0.0001226,37589.0,37583.0,0.05]
[1646687323312,0.0001226,37589.0,37587.0,0.27271612]
[1646687323516,0.0001226,37589.0,37587.0,0.32271612]
[1646687323714,0.0001226,37589.0,37587.0,0.37271612]
[1646687325219,0.0001226,37589.0,37587.0,0.43925712]
[1646687325419,0.0001226,37589.0,37588.0,0.407531]
[1646687326018,0.0001226,37589.0,37587.0,0.43925712]
[1646687327068,0.0001226,37589.0,37588.0,0.407531]
[1646687328371,7.909e-05,37589.0,37588.0,0.407531]
[1646687332536,7.909e-05,37589.0,37587.0,0.1]
[1646687332733,7.909e-05,37589.0,37579.0,0.26619744]
[1646687332930,7.909e-05,37589.0,37580.0,0.407531]
[1646687333133,7.909e-05,37589.0,37578.0,0.2019]
[1646687333334,0.0533,37588.0,37578.0,0.268456]
[1646687333630,0.0533,37588.0,37581.0,0.24003966]
[1646687333832,0.0999,37584.0,37581.0,0.24003966]
[1646687334033,0.0999,37584.0,37582.0,0.407531]
[1646687334230,0.05342259,37588.0,37582.0,0.407531]
[1646687334487,0.0999,37583.0,37582.0,0.457531]
[1646687334690,7.909e-05,37589.0,37582.0,0.457531]
[1646687334891,7.909e-05,37589.0,37586.0,0.2114921]
[1646687335093,0.00012259,37588.0,37587.0,0.69548855]
[1646687335291,0.00012259,37588.0,37587.0,0.38795755]
[1646687335891,7.909e-05,37589.0,37587.0,0.38795755]
[1646687336293,0.0999,37588.0,37582.0,0.05]
[1646687336492,0.0999,37588.0,37578.0,0.22626046]
[1646687336691,0.0999,37588.0,37579.0,0.407531]
[1646687336892,0.0999,37588.0,37579.0,0.61525319]
[1646687337292,0.33352058,37588.0,37579.0,0.61525319]
[1646687337493,0.33364317,37588.0,37585.0,0.26768179]
[1646687337797,0.10002259,37588.0,37585.0,0.36768179]
[1646687338093,0.00012259,37588.0,37586.0,0.407531]
[1646687338321,7.909e-05,37589.0,37586.0,0.407531]
[1646687338718,7.909e-05,37589.0,37585.0,0.43422567]
[1646687338719,0.00012259,37588.0,37585.0,0.50076967]
[1646687338918,0.00012259,37588.0,37586.0,0.407531]
[1646687339120,0.00012259,37588.0,37585.0,0.36768179]
[1646687339520,7.909e-05,37589.0,37585.0,0.36768179]
[1646687339720,7.909e-05,37589.0,37585.0,0.43422601]
[1646687339920,0.00012259,37588.0,37585.0,0.43422601]
[1646687340619,0.00012259,37588.0,37586.0,0.066542]
[1646687340818,0.09997909,37589.0,37586.0,0.066542]
[1646687341021,0.00012259,37588.0,37587.0,0.407531]
[1646687341519,0.00012259,37588.0,37586.0,0.066542]
[1646687341720,0.00012259,37588.0,37587.0,0.457531]
[1646687341988,0.09997909,37589.0,37587.0,0.507531]
[1646687342185,0.10010168,37589.0,37588.0,0.05]
[1646687342587,0.10010168,37589.0,37587.0,0.05]
[1646687342785,0.10010168,37589.0,37586.0,0.166542]
[1646687342990,0.0999,37588.0,37587.0,0.407531]
[1646687344394,0.0999,37588.0,37587.0,0.707531]
[1646687344591,0.00307909,37589.0,37587.0,0.807531]
[1646687344592,0.0002011,37589.0,37587.0,0.807531]
[1646687344788,0.0002011,37589.0,37588.0,0.757531]
[1646687345188,0.0002011,37589.0,37588.0,0.807531]
[1646687345594,7.909e-05,37589.0,37588.0,0.807531]
[1646687346416,7.909e-05,37589.0,37588.0,0.907531]
[1646687347016,0.09997909,37589.0,37588.0,0.907531]
[1646687349319,0.10197909,37589.0,37588.0,0.907531]
[1646687349569,0.10197909,37589.0,37588.0,0.807531]
[1646687350669,0.10197909,37589.0,37588.0,0.907531]
[1646687351274,0.10197909,37589.0,37588.0,0.607531]
[1646687351471,0.10297909,37589.0,37588.0,0.607531]
[1646687352272,0.0001157,37590.0,37589.0,0.9777231]
[1646687352472,0.0001157,37590.0,37589.0,1.0277231]
[1646687352671,0.08778599,37592.0,37589.0,0.7277231]
[1646687352871,0.08778599,37592.0,37590.0,0.407531]
[1646687353071,0.00012259,37591.0,37590.0,0.457531]
[1646687353718,0.00012259,37591.0,37590.0,0.557531]
[1646687353919,0.08778599,37592.0,37590.0,0.557531]
[1646687354118,0.08778599,37592.0,37591.0,0.27608295]
[1646687354322,0.08790858,37592.0,37591.0,1.02322482]
[1646687355220,0.08778599,37592.0,37591.0,1.02322482]
[1646687355822,0.08778599,37592.0,37591.0,1.32322482]
[1646687356221,0.00012259,37593.0,37592.0,0.407531]
[1646687356424,0.0011,37598.0,37592.0,0.457531]
[1646687356625,0.00012259,37593.0,37592.0,0.524064]
[1646687357283,0.00012259,37593.0,37592.0,0.824064]
[1646687357482,0.0011,37598.0,37592.0,0.924064]
[1646687357683,0.0011,37598.0,37597.0,0.16800537]
[1646687357883,0.0011,37598.0,37597.0,0.49448642]
[1646687358883,0.0011,37598.0,37597.0,0.90201742]
[1646687360085,0.0011,37598.0,37597.0,0.73401205]
[1646687360290,0.0011,37598.0,37597.0,0.32648105]
[1646687360291,0.14031202,37598.0,37597.0,0.32648105]
[1646687361121,0.41429143,37598.0,37597.0,0.32648105]
[1646687362221,0.27507941,37598.0,37597.0,0.32648105]
[1646687362822,0.0011,37598.0,37597.0,0.32648105]
[1646687365479,0.0011,37598.0,37592.0,0.05]
[1646687365680,0.0999,37597.0,37591.0,0.3713]
[1646687365979,0.0011,37598.0,37593.0,0.407531]
[1646687366179,0.00012047,37597.0,37594.0,0.18577006]
[1646687366482,0.00012047,37597.0,37596.0,0.407531]
[1646687366678,0.00012047,37597.0,37596.0,0.457531]
[1646687366881,0.00012047,37597.0,37596.0,0.3494566]
[1646687367080,0.00012047,37597.0,37596.0,0.7569876]
[1646687367278,0.0011,37598.0,37596.0,0.7569876]
[1646687367279,0.0011,37598.0,37597.0,0.407531]
[1646687367478,0.0011,37598.0,37596.0,0.3494566]
[1646687367479,0.00122047,37598.0,37596.0,0.3494566]
[1646687367678,0.00122047,37598.0,37597.0,0.407531]
[1646687367880,0.00122047,37598.0,37597.0,0.40578249]
[1646687368531,0.0011,37598.0,37597.0,0.40578249]
[1646687369032,0.0011,37598.0,37596.0,0.71597977]
[1646687369429,0.0011,37598.0,37596.0,0.41597977]
[1646687369631,0.0011,37598.0,37597.0,0.407363]
[1646687370331,0.0011,37598.0,37596.0,0.3494566]
[1646687375575,0.0011,37598.0,37597.0,0.707363]
[1646687377027,0.0011,37598.0,37597.0,0.807363]
[1646687377424,0.01122036,37599.0,37598.0,1.05219999]
[1646687377622,0.01122036,37599.0,37598.0,1.75956299]
[1646687377822,0.01122036,37599.0,37598.0,2.15880269]
[1646687378022,0.0111,37599.0,37598.0,2.15880269]
[1646687378223,0.0111,37599.0,37598.0,2.25108269]
[1646687378923,0.009164,37599.0,37598.0,2.25108269]